[Event "*** Titled Tuesday 3|2 Blitz"]
[Site "Chess.com"]
[Date "2015.10.06"]
[Round "3"]
[White "LePlusMortel"]
[Black "Viaje"]
[Result "0-1"]
[WhiteElo "2395"]
[BlackElo "2214"]
[TimeControl "180+2"]
[EndTime "17:35:24 PDT"]
[Termination "Viaje won on time"]

1. Nf3 {[%clk 0:03:01.9]} 1... c5 {[%clk 0:03:00.8]} 2. g3 {[%clk 0:03:03]} 2...
Nc6 {[%clk 0:03:01.8]} 3. Bg2 {[%clk 0:03:04.6]} 3... e5 {[%clk 0:03:02.8]} 4.
c4 {[%clk 0:03:04.7]} 4... g6 {[%clk 0:03:04.1]} 5. O-O {[%clk 0:03:02.4]} 5...
Bg7 {[%clk 0:03:05.7]} 6. Nc3 {[%clk 0:03:03.8]} 6... d6 {[%clk 0:03:06.9]} 7.
Ne1 {[%clk 0:03:05.1]} 7... Nge7 {[%clk 0:03:07.1]} 8. Nc2 {[%clk 0:03:06.5]}
8... Be6 {[%clk 0:03:08.6]} 9. Ne3 {[%clk 0:03:07.7]} 9... O-O {[%clk
0:03:01.4]} 10. h4 {[%clk 0:03:05.7]} 10... h6 {[%clk 0:02:59.8]} 11. d3 {[%clk
0:02:57.1]} 11... a6 {[%clk 0:02:57.2]} 12. a3 {[%clk 0:02:52.1]} 12... Rb8
{[%clk 0:02:56.3]} 13. Rb1 {[%clk 0:02:50]} 13... b5 {[%clk 0:02:57.1]} 14. Ncd5
{[%clk 0:02:26.3]} 14... f5 {[%clk 0:02:40.5]} 15. b4 {[%clk 0:02:19.2]} 15...
Nd4 {[%clk 0:02:09]} 16. Nxe7+ {[%clk 0:02:17.1]} 16... Qxe7 {[%clk 0:02:09.8]}
17. Nd5 {[%clk 0:02:18.8]} 17... Qd7 {[%clk 0:02:02.6]} 18. e3 {[%clk
0:01:57.9]} 18... Nc6 {[%clk 0:02:01.7]} 19. Bd2 {[%clk 0:01:48.7]} 19... Kh8
{[%clk 0:02:01]} 20. Qc2 {[%clk 0:01:42.9]} 20... bxc4 {[%clk 0:01:57.2]} 21.
dxc4 {[%clk 0:01:34.3]} 21... e4 {[%clk 0:01:52.8]} 22. Nf4 {[%clk 0:01:23.3]}
22... Bf7 {[%clk 0:01:46.6]} 23. h5 {[%clk 0:01:15.2]} 23... g5 {[%clk
0:01:45.4]} 24. Ng6+ {[%clk 0:01:16.8]} 24... Bxg6 {[%clk 0:01:46.1]} 25. hxg6
{[%clk 0:01:18.7]} 25... Ne5 {[%clk 0:01:44.7]} 26. Bc3 {[%clk 0:01:06.7]} 26...
Nxg6 {[%clk 0:01:38.8]} 27. bxc5 {[%clk 0:01:00.2]} 27... dxc5 {[%clk
0:01:37.9]} 28. Rbd1 {[%clk 0:00:57.6]} 28... Qe6 {[%clk 0:01:23]} 29. Rd5
{[%clk 0:00:57.2]} 29... Rfc8 {[%clk 0:01:09]} 30. Rfd1 {[%clk 0:00:55.9]} 30...
Ne5 {[%clk 0:01:05.3]} 31. Bxe5 {[%clk 0:00:56.3]} 31... Bxe5 {[%clk 0:01:05.9]}
32. g4 {[%clk 0:00:57.9]} 32... Rb2 {[%clk 0:00:44.8]} 33. Rd8+ {[%clk
0:00:50.5]} 33... Rxd8 {[%clk 0:00:45.3]} 34. Rxd8+ {[%clk 0:00:52.4]} 34... Kg7
{[%clk 0:00:45.6]} 35. Qd1 {[%clk 0:00:52.7]} 35... Qxc4 {[%clk 0:00:30.7]} 36.
gxf5 {[%clk 0:00:27.5]} 36... Qb5 {[%clk 0:00:20.8]} 37. Bf1 {[%clk 0:00:09.1]}
37... Qc6 {[%clk 0:00:17.1]} 38. Rd7+ {[%clk 0:00:05.9]} 38... Kf6 {[%clk
0:00:16.2]} 39. Rd8 {[%clk 0:00:07.5]} 39... c4 {[%clk 0:00:16.1]} 40. Qh5
{[%clk 0:00:08.2]} 40... Kg7 {[%clk 0:00:10]} 41. f6+ {[%clk 0:00:04.6]} 41...
Qxf6 {[%clk 0:00:08.8]} 42. Rd7+ {[%clk 0:00:06.2]} 42... Kf8 {[%clk 0:00:07.7]}
0-1

[Event "*** Titled Tuesday 3|2 Blitz"]
[Site "Chess.com"]
[Date "2015.10.06"]
[Round "3"]
[White "gmjlh"]
[Black "Dlugy"]
[Result "0-1"]
[WhiteElo "2622"]
[BlackElo "2563"]
[TimeControl "180+2"]
[EndTime "17:35:44 PDT"]
[Termination "Dlugy won on time"]

1. e4 {[%clk 0:03:01]} 1... d5 {[%clk 0:03:00.8]} 2. exd5 {[%clk 0:03:01.1]}
2... Qxd5 {[%clk 0:03:02.4]} 3. Nc3 {[%clk 0:03:02.5]} 3... Qd6 {[%clk
0:03:03.6]} 4. d4 {[%clk 0:03:02]} 4... c6 {[%clk 0:03:04.8]} 5. g3 {[%clk
0:03:01]} 5... Nf6 {[%clk 0:03:05.3]} 6. Bg2 {[%clk 0:02:59.8]} 6... g6 {[%clk
0:03:05.4]} 7. Nge2 {[%clk 0:03:00.5]} 7... Bg7 {[%clk 0:03:06.7]} 8. O-O {[%clk
0:03:01.4]} 8... O-O {[%clk 0:03:07.7]} 9. Bf4 {[%clk 0:03:01.9]} 9... Qd8
{[%clk 0:03:06.8]} 10. Qd2 {[%clk 0:02:57.5]} 10... Na6 {[%clk 0:03:07.4]} 11.
Rad1 {[%clk 0:02:56.9]} 11... Bf5 {[%clk 0:03:07.6]} 12. h3 {[%clk 0:02:54.9]}
12... Nb4 {[%clk 0:03:08.6]} 13. Rc1 {[%clk 0:02:51.7]} 13... Nbd5 {[%clk
0:03:02.7]} 14. Nxd5 {[%clk 0:02:51.6]} 14... Nxd5 {[%clk 0:02:45.4]} 15. Bh6
{[%clk 0:02:49.2]} 15... Re8 {[%clk 0:02:45.1]} 16. Bxg7 {[%clk 0:02:49.1]}
16... Kxg7 {[%clk 0:02:46.4]} 17. Rfe1 {[%clk 0:02:45.8]} 17... Qb6 {[%clk
0:02:42]} 18. g4 {[%clk 0:02:37.5]} 18... Bd7 {[%clk 0:02:33.7]} 19. c4 {[%clk
0:02:29.3]} 19... Nf6 {[%clk 0:02:34.6]} 20. Ng3 {[%clk 0:02:25.2]} 20... Rad8
{[%clk 0:02:33.2]} 21. g5 {[%clk 0:02:25.3]} 21... Ng8 {[%clk 0:02:32.2]} 22.
Qc3 {[%clk 0:02:24]} 22... h6 {[%clk 0:02:23.3]} 23. h4 {[%clk 0:02:25.2]} 23...
Bg4 {[%clk 0:02:01.8]} 24. Re4 {[%clk 0:02:22.5]} 24... h5 {[%clk 0:01:58.2]}
25. Rce1 {[%clk 0:02:22.8]} 25... Kh7 {[%clk 0:01:53.8]} 26. Rf4 {[%clk
0:02:23.5]} 26... Rf8 {[%clk 0:01:52.6]} 27. Be4 {[%clk 0:02:01.6]} 27... Qc7
{[%clk 0:01:53.3]} 28. Qe3 {[%clk 0:02:01.6]} 28... Kg7 {[%clk 0:01:51.8]} 29.
Bc2 {[%clk 0:01:52.9]} 29... Rfe8 {[%clk 0:01:51.8]} 30. Qe4 {[%clk 0:01:45.1]}
30... c5 {[%clk 0:01:45.5]} 31. dxc5 {[%clk 0:00:30.8]} 31... e5 {[%clk
0:01:46.2]} 32. Rxg4 {[%clk 0:00:27.1]} 32... hxg4 {[%clk 0:01:38.6]} 33. h5
{[%clk 0:00:28.5]} 33... Rd4 {[%clk 0:01:27.4]} 34. Qxd4 {[%clk 0:00:28.6]}
34... exd4 {[%clk 0:01:25.9]} 35. Rxe8 {[%clk 0:00:30.5]} 35... Qxc5 {[%clk
0:01:21.9]} 36. h6+ {[%clk 0:00:21.3]} 36... Nxh6 {[%clk 0:01:22.9]} 37. gxh6+
{[%clk 0:00:23.2]} 37... Kxh6 {[%clk 0:01:24.4]} 38. Bd3 {[%clk 0:00:20]} 38...
f5 {[%clk 0:01:24.9]} 39. Ne2 {[%clk 0:00:13.5]} 39... Kg5 {[%clk 0:01:17.2]}
40. Rd8 {[%clk 0:00:12.5]} 40... Qa5 {[%clk 0:01:18.3]} 41. Rxd4 {[%clk
0:00:10.5]} 41... Qxa2 {[%clk 0:01:19.4]} 42. Rd6 {[%clk 0:00:10.1]} 42... Qxb2
{[%clk 0:01:18.2]} 43. Kg2 {[%clk 0:00:11.5]} 43... a5 {[%clk 0:01:15.9]} 44.
Nd4 {[%clk 0:00:11.7]} 44... Qa3 {[%clk 0:01:06.1]} 45. c5 {[%clk 0:00:11.1]}
45... Kh4 {[%clk 0:00:58.8]} 46. Ne6 {[%clk 0:00:08.9]} 46... Qa4 {[%clk
0:00:35.9]} 47. Kh2 {[%clk 0:00:10.2]} 47... Qa2 {[%clk 0:00:33.3]} 48. Kg1
{[%clk 0:00:06.3]} 48... Qa1+ {[%clk 0:00:29.9]} 49. Kg2 {[%clk 0:00:07.3]}
49... Qb2 {[%clk 0:00:31.1]} 50. Rd7 {[%clk 0:00:07.1]} 50... g3 {[%clk
0:00:30.4]} 51. Rh7+ {[%clk 0:00:03.7]} 51... Kg4 {[%clk 0:00:31.7]} 0-1

[Event "*** Titled Tuesday 3|2 Blitz"]
[Site "Chess.com"]
[Date "2015.10.06"]
[Round "3"]
[White "pKiLz5Rn9b"]
[Black "Iball95"]
[Result "0-1"]
[WhiteElo "2390"]
[BlackElo "2346"]
[TimeControl "180+2"]
[EndTime "17:37:22 PDT"]
[Termination "Iball95 won by resignation"]

1. e4 {[%clk 0:03:01.9]} 1... c5 {[%clk 0:03:00.4]} 2. c3 {[%clk 0:03:01.6]}
2... g6 {[%clk 0:02:58]} 3. d4 {[%clk 0:03:01.9]} 3... cxd4 {[%clk 0:02:59.1]}
4. cxd4 {[%clk 0:03:03.8]} 4... d5 {[%clk 0:02:59.9]} 5. e5 {[%clk 0:03:04.7]}
5... Bg7 {[%clk 0:02:59.9]} 6. Nc3 {[%clk 0:03:05.1]} 6... Nh6 {[%clk
0:02:59.7]} 7. h3 {[%clk 0:02:48.2]} 7... O-O {[%clk 0:03:00.2]} 8. g4 {[%clk
0:02:41.1]} 8... Nc6 {[%clk 0:02:44]} 9. Bg2 {[%clk 0:02:35.9]} 9... Be6 {[%clk
0:02:43.4]} 10. Nge2 {[%clk 0:02:32.6]} 10... Kh8 {[%clk 0:02:09.9]} 11. Be3
{[%clk 0:02:30.1]} 11... f6 {[%clk 0:01:57.3]} 12. Qd2 {[%clk 0:02:23.1]} 12...
Nf7 {[%clk 0:01:50.6]} 13. Nf4 {[%clk 0:02:23.7]} 13... Qd7 {[%clk 0:01:40.2]}
14. Nxe6 {[%clk 0:02:22.1]} 14... Qxe6 {[%clk 0:01:42.1]} 15. Bxd5 {[%clk
0:02:23.7]} 15... Qc8 {[%clk 0:01:42.7]} 16. e6 {[%clk 0:02:13.7]} 16... Nd6
{[%clk 0:01:25.8]} 17. O-O {[%clk 0:02:13.2]} 17... Nd8 {[%clk 0:01:24.4]} 18.
Rac1 {[%clk 0:02:05.3]} 18... Nxe6 {[%clk 0:01:23.2]} 19. Nb5 {[%clk 0:01:51.5]}
19... Qd7 {[%clk 0:01:18.4]} 20. Bxe6 {[%clk 0:01:46.6]} 20... Qxb5 {[%clk
0:00:56.7]} 21. Rc5 {[%clk 0:01:41.9]} 21... Qa6 {[%clk 0:00:53]} 22. Qc2 {[%clk
0:01:33.1]} 22... f5 {[%clk 0:00:49.8]} 23. gxf5 {[%clk 0:01:13.7]} 23... Nxf5
{[%clk 0:00:48]} 24. Bxf5 {[%clk 0:01:13.8]} 24... gxf5 {[%clk 0:00:45.9]} 25.
Kh1 {[%clk 0:00:55.4]} 25... Qxa2 {[%clk 0:00:43.3]} 26. Rg1 {[%clk 0:00:33.4]}
26... Qe6 {[%clk 0:00:44]} 27. d5 {[%clk 0:00:19.6]} 27... Qd6 {[%clk
0:00:32.6]} 28. b4 {[%clk 0:00:16.9]} 28... b6 {[%clk 0:00:26]} 29. Rc7 {[%clk
0:00:10.2]} 29... Qxd5+ {[%clk 0:00:26.2]} 30. Rg2 {[%clk 0:00:11.7]} 30... Bf6
{[%clk 0:00:18.7]} 31. Rc4 {[%clk 0:00:09.5]} 31... Rg8 {[%clk 0:00:19.5]} 32.
f3 {[%clk 0:00:03.8]} 32... Qxf3 {[%clk 0:00:20.1]} 33. Qf2 {[%clk 0:00:04.2]}
33... Qxh3+ {[%clk 0:00:19.1]} 34. Rh2 {[%clk 0:00:05.3]} 34... Qg3 {[%clk
0:00:12.4]} 35. Qxg3 {[%clk 0:00:06.5]} 35... Rxg3 {[%clk 0:00:14.3]} 36. Bf4
{[%clk 0:00:08.4]} 36... Rg4 {[%clk 0:00:15]} 37. Rf2 {[%clk 0:00:07.8]} 37...
Rag8 {[%clk 0:00:15.1]} 38. Rc1 {[%clk 0:00:07]} 38... Rh4+ {[%clk 0:00:15.3]}
39. Bh2 {[%clk 0:00:08.3]} 39... Be5 {[%clk 0:00:16.4]} 40. Rcc2 {[%clk
0:00:07.7]} 40... Rxh2+ {[%clk 0:00:16.6]} 41. Rxh2 {[%clk 0:00:09.4]} 41...
Bxh2 {[%clk 0:00:18.2]} 42. Kxh2 {[%clk 0:00:11.3]} 42... Rg4 {[%clk 0:00:19.3]}
43. Rc7 {[%clk 0:00:11.5]} 43... Rxb4 {[%clk 0:00:19.2]} 44. Rxa7 {[%clk
0:00:12.6]} 44... Re4 {[%clk 0:00:18.4]} 45. Rb7 {[%clk 0:00:13.5]} 45... Kg7
{[%clk 0:00:19.3]} 46. Rxb6 {[%clk 0:00:14.9]} 46... h5 {[%clk 0:00:20.2]} 47.
Kg3 {[%clk 0:00:16.8]} 47... e6 {[%clk 0:00:21]} 48. Kf3 {[%clk 0:00:17.6]}
48... Kf6 {[%clk 0:00:21.9]} 49. Rb8 {[%clk 0:00:18.3]} 49... Ra4 {[%clk
0:00:22.1]} 50. Rf8+ {[%clk 0:00:19.3]} 50... Ke5 {[%clk 0:00:23.4]} 51. Rb8
{[%clk 0:00:19.2]} 51... h4 {[%clk 0:00:23.3]} 52. Rb5+ {[%clk 0:00:19.2]} 52...
Kf6 {[%clk 0:00:24.6]} 53. Rb6 {[%clk 0:00:19.7]} 53... Ra3+ {[%clk 0:00:24.6]}
54. Kf4 {[%clk 0:00:21.2]} 54... Ra4+ {[%clk 0:00:25.5]} 55. Kf3 {[%clk
0:00:22]} 55... h3 {[%clk 0:00:26.3]} 56. Kg3 {[%clk 0:00:16.7]} 56... Ra3+
{[%clk 0:00:26.8]} 57. Kh2 {[%clk 0:00:11.6]} 57... f4 {[%clk 0:00:24]} 58. Rb8
{[%clk 0:00:09.1]} 58... e5 {[%clk 0:00:23.7]} 59. Rf8+ {[%clk 0:00:09.3]} 59...
Ke6 {[%clk 0:00:25.1]} 60. Re8+ {[%clk 0:00:10.8]} 60... Kf5 {[%clk 0:00:26]}
61. Rd8 {[%clk 0:00:12.7]} 61... e4 {[%clk 0:00:22.6]} 62. Rf8+ {[%clk
0:00:13.2]} 62... Kg4 {[%clk 0:00:23.5]} 63. Re8 {[%clk 0:00:13.3]} 63... Kf3
{[%clk 0:00:23.4]} 64. Kxh3 {[%clk 0:00:13.3]} 64... e3 {[%clk 0:00:24.8]} 65.
Kh2 {[%clk 0:00:13.7]} 65... Ra2+ {[%clk 0:00:24.2]} 66. Kg1 {[%clk 0:00:14.9]}
66... e2 {[%clk 0:00:24.9]} 67. Re7 {[%clk 0:00:14.3]} 67... Ra1+ {[%clk
0:00:24.3]} 0-1

[Event "*** Titled Tuesday 3|2 Blitz"]
[Site "Chess.com"]
[Date "2015.10.06"]
[Round "3"]
[White "Jahonas"]
[Black "Goala"]
[Result "1-0"]
[WhiteElo "2053"]
[BlackElo "2129"]
[TimeControl "180+2"]
[EndTime "17:37:25 PDT"]
[Termination "Jahonas won by resignation"]

1. d4 {[%clk 0:03:01.8]} 1... e6 {[%clk 0:02:49.9]} 2. c4 {[%clk 0:03:02.3]}
2... Nf6 {[%clk 0:02:49.6]} 3. Nc3 {[%clk 0:03:03.5]} 3... c5 {[%clk 0:02:51.2]}
4. d5 {[%clk 0:03:04.2]} 4... exd5 {[%clk 0:02:53.1]} 5. cxd5 {[%clk 0:03:05.6]}
5... d6 {[%clk 0:02:55]} 6. e4 {[%clk 0:03:06.8]} 6... g6 {[%clk 0:02:51.9]} 7.
Bb5+ {[%clk 0:03:07.8]} 7... Nbd7 {[%clk 0:02:42.8]} 8. Nf3 {[%clk 0:03:08.2]}
8... Bg7 {[%clk 0:02:40.5]} 9. O-O {[%clk 0:03:07.2]} 9... a6 {[%clk 0:02:40.2]}
10. Bxd7+ {[%clk 0:03:07.1]} 10... Nxd7 {[%clk 0:02:34.9]} 11. Bf4 {[%clk
0:03:03.9]} 11... Qe7 {[%clk 0:02:32.8]} 12. e5 {[%clk 0:02:52.8]} 12... Nxe5
{[%clk 0:02:16.1]} 13. Bxe5 {[%clk 0:02:49.1]} 13... dxe5 {[%clk 0:01:52.5]} 14.
d6 {[%clk 0:02:48.4]} 14... Qd8 {[%clk 0:01:14.3]} 15. Re1 {[%clk 0:02:45]}
15... O-O {[%clk 0:01:04.9]} 16. Nxe5 {[%clk 0:02:44.6]} 16... Be6 {[%clk
0:01:05.2]} 17. Nd5 {[%clk 0:02:32.8]} 17... Kh8 {[%clk 0:00:46.1]} 18. Nc7
{[%clk 0:02:26.8]} 18... Rc8 {[%clk 0:00:44]} 19. Rc1 {[%clk 0:02:10.3]} 19...
Rxc7 {[%clk 0:00:34.8]} 20. dxc7 {[%clk 0:02:10.6]} 20... Qxc7 {[%clk
0:00:36.7]} 21. Nc4 {[%clk 0:01:44.8]} 21... b5 {[%clk 0:00:31.4]} 22. Ne3
{[%clk 0:01:27]} 22... Bxb2 {[%clk 0:00:31.9]} 23. Rb1 {[%clk 0:01:25.8]} 23...
Bd4 {[%clk 0:00:30]} 24. Qc2 {[%clk 0:01:19.4]} 24... Kg8 {[%clk 0:00:26]} 25.
Rbd1 {[%clk 0:01:17]} 25... Rd8 {[%clk 0:00:22.3]} 26. Rd2 {[%clk 0:00:47.6]}
26... Rd6 {[%clk 0:00:17.8]} 27. Red1 {[%clk 0:00:46.8]} 27... Qd7 {[%clk
0:00:19.4]} 28. Nf1 {[%clk 0:00:42.1]} 28... Bf5 {[%clk 0:00:17.3]} 29. Qc1
{[%clk 0:00:37.7]} 29... c4 {[%clk 0:00:16.2]} 30. Ne3 {[%clk 0:00:34.1]} 30...
Bd3 {[%clk 0:00:14.1]} 31. Nc2 {[%clk 0:00:27.7]} 31... Bc5 {[%clk 0:00:14.1]}
32. a3 {[%clk 0:00:27.8]} 32... Rf6 {[%clk 0:00:11.7]} 33. Nb4 {[%clk
0:00:25.4]} 33... Bxb4 {[%clk 0:00:11]} 34. axb4 {[%clk 0:00:26.2]} 34... Qd6
{[%clk 0:00:12]} 35. Qc3 {[%clk 0:00:26.6]} 35... h5 {[%clk 0:00:12.9]} 36. h3
{[%clk 0:00:27.6]} 36... Re6 {[%clk 0:00:13.7]} 37. Rxd3 {[%clk 0:00:26.5]}
37... cxd3 {[%clk 0:00:14.2]} 38. g3 {[%clk 0:00:26.5]} 38... Re4 {[%clk
0:00:11.1]} 39. Rxd3 {[%clk 0:00:27.5]} 39... Qxb4 {[%clk 0:00:11.9]} 40. Rd8+
{[%clk 0:00:27.8]} 40... Qf8 {[%clk 0:00:10]} 41. Rxf8+ {[%clk 0:00:28.3]} 41...
Kxf8 {[%clk 0:00:11.9]} 42. Qc8+ {[%clk 0:00:29.3]} 42... Kg7 {[%clk 0:00:12.3]}
43. Qxa6 {[%clk 0:00:30.1]} 43... b4 {[%clk 0:00:12.1]} 44. Qb7 {[%clk 0:00:31]}
44... Rd4 {[%clk 0:00:10.5]} 45. Qb6 {[%clk 0:00:30.5]} 45... Rc4 {[%clk
0:00:10.6]} 46. Qb5 {[%clk 0:00:29.8]} 46... Re4 {[%clk 0:00:10.3]} 47. Qd5
{[%clk 0:00:30.6]} 47... f5 {[%clk 0:00:08]} 48. f3 {[%clk 0:00:29.9]} 48... Re7
{[%clk 0:00:06.7]} 49. Qd4+ {[%clk 0:00:30.3]} 49... Kf7 {[%clk 0:00:07.5]} 50.
Qxb4 {[%clk 0:00:31.1]} 50... Re6 {[%clk 0:00:09.4]} 51. Kf2 {[%clk 0:00:32]}
51... Kf6 {[%clk 0:00:10.8]} 52. g4 {[%clk 0:00:31.8]} 52... fxg4 {[%clk
0:00:11.2]} 53. hxg4 {[%clk 0:00:32.7]} 53... hxg4 {[%clk 0:00:13.1]} 54. fxg4
{[%clk 0:00:34]} 54... Re5 {[%clk 0:00:11]} 55. Qf4+ {[%clk 0:00:29.8]} 55...
Ke6 {[%clk 0:00:11.7]} 56. Kg3 {[%clk 0:00:28.6]} 56... g5 {[%clk 0:00:06.5]}
57. Qc4+ {[%clk 0:00:29.1]} 57... Kd6 {[%clk 0:00:07.1]} 58. Qa6+ {[%clk
0:00:28.8]} 58... Kd5 {[%clk 0:00:07.9]} 59. Kf3 {[%clk 0:00:28.7]} 59... Kc5
{[%clk 0:00:08.2]} 60. Qa5+ {[%clk 0:00:29.2]} 60... Kd6 {[%clk 0:00:09.3]} 61.
Qb6+ {[%clk 0:00:28.8]} 61... Kd5 {[%clk 0:00:10.8]} 62. Qf6 {[%clk 0:00:28.3]}
62... Kd4 {[%clk 0:00:10]} 63. Qd6+ {[%clk 0:00:29.3]} 63... Rd5 {[%clk
0:00:11.7]} 64. Qc6 {[%clk 0:00:26.6]} 64... Re5 {[%clk 0:00:12]} 65. Qf6 {[%clk
0:00:26.4]} 65... Kd5 {[%clk 0:00:12.7]} 66. Qd8+ {[%clk 0:00:25.4]} 66... Ke6
{[%clk 0:00:13.1]} 67. Qc8+ {[%clk 0:00:25.7]} 67... Kf6 {[%clk 0:00:12.7]} 68.
Qc3 {[%clk 0:00:24.7]} 68... Ke6 {[%clk 0:00:13.8]} 69. Qd4 {[%clk 0:00:24.9]}
69... Rd5 {[%clk 0:00:13.5]} 70. Qc4 {[%clk 0:00:26]} 70... Kd6 {[%clk
0:00:12.9]} 71. Ke4 {[%clk 0:00:26.5]} 71... Re5+ {[%clk 0:00:14]} 72. Kd4
{[%clk 0:00:26.9]} 72... Re1 {[%clk 0:00:06]} 73. Qc5+ {[%clk 0:00:27.7]} 73...
Kd7 {[%clk 0:00:06.8]} 74. Qxg5 {[%clk 0:00:29.6]} 74... Rd1+ {[%clk 0:00:07.6]}
75. Ke5 {[%clk 0:00:30.4]} 75... Rd6 {[%clk 0:00:09.5]} 76. Qf5+ {[%clk
0:00:30.7]} 76... Kc6 {[%clk 0:00:10.9]} 77. Qe6 {[%clk 0:00:31]} 77... Rxe6+
{[%clk 0:00:11.6]} 78. Kxe6 {[%clk 0:00:32.9]} 78... Kc7 {[%clk 0:00:13.5]} 79.
Kf7 {[%clk 0:00:34.2]} 79... Kd8 {[%clk 0:00:15.4]} 80. g5 {[%clk 0:00:36.1]}
1-0